fUST/lending_fUST_20250909
["ID","MTS","AMOUNT","RATE_DAILY","PERIOD"]
[384409892,1757388642433,-480.0,0.00013698,2]
[384409893,1757388642443,-484.26679984,0.00013698,2]
[384409894,1757388642452,-484.44772773,0.00013698,2]
[384409895,1757388642462,-480.0,0.00013698,2]
[384409896,1757388642472,-483.26301572,0.00013698,2]
[384409897,1757388642481,-480.0,0.00013698,2]
[384409898,1757388642491,-481.93991978,0.00013698,2]
[384409899,1757388642500,-482.36672709,0.00013698,2]
[384409900,1757388642510,-485.20578567,0.00013698,2]
[384409901,1757388642520,-481.32757708,0.00013698,2]
[384409902,1757388642530,-483.6418075,0.00013698,2]
[384409903,1757388642540,-489.27116245,0.00013698,2]
[384409904,1757388642549,-482.34669603,0.00013698,2]
[384409905,1757388642559,-482.25421264,0.00013698,2]
[384409906,1757388642568,-480.0,0.00013698,2]
[384409907,1757388642577,-480.0,0.00013698,2]
[384409908,1757388642587,-480.0,0.00013698,2]
[384409909,1757388642597,-484.51500716,0.00013698,2]
[384409910,1757388642607,-483.28932409,0.00013698,2]
[384409911,1757388642616,-484.18053668,0.00013698,2]
[384409912,1757388642626,-480.0,0.00013698,2]
[384409913,1757388642636,-484.36699093,0.00013698,2]
[384409914,1757388642646,-483.65736576,0.00013698,2]
[384409915,1757388642659,-494.12119013,0.00013698,2]
[384409916,1757388642668,-480.0,0.00013698,2]
[384409917,1757388642678,-482.54786845,0.00013698,2]
[384409918,1757388642687,-480.0,0.00013698,2]
[384409919,1757388642697,-482.10485694,0.00013698,2]
[384409920,1757388642707,-480.0,0.00013698,2]
[384409921,1757388642716,-480.0,0.00013698,2]
[384409922,1757388642726,-480.0,0.00013698,2]
[384409923,1757388642734,-488.49222357,0.00013698,2]
[384409924,1757388642742,-598.11221727,0.00013698,2]
[384409925,1757388642750,-483.92633891,0.00013698,2]
[384409926,1757388642759,-491.31268156,0.00013698,2]
[384409927,1757388642769,-484.80547237,0.00013698,2]
[384409928,1757388642779,-488.58015089,0.00013698,2]
[384409929,1757388642788,-484.06581446,0.00013698,2]
[384409930,1757388642798,-486.85317792,0.00013698,2]
[384409931,1757388642807,-480.0,0.00013698,2]
[384409933,1757388642817,-480.0,0.00013698,2]
[384409934,1757388642826,-1885.4,0.00013698,2]
[384409935,1757388642835,-480.0,0.00013698,2]
[384409936,1757388642845,-484.79206566,0.00013698,2]
[384409937,1757388642854,-618.68811538,0.00013698,2]
[384409938,1757388642863,-480.0,0.00013698,2]
[384409939,1757388642873,-483.98560102,0.00013698,2]
[384409940,1757388642883,-627.34953314,0.00013698,2]
[384409942,1757388642893,-480.0,0.00013698,2]
[384409944,1757388642904,-483.49013081,0.00013698,2]
[384409946,1757388642914,-480.0,0.00013698,2]
[384409948,1757388642924,-487.19788777,0.00013698,2]
[384409949,1757388642933,-496.44996399,0.00013698,2]
[384409950,1757388642942,-482.33567945,0.00013698,2]
[384409951,1757388642951,-480.0,0.00013698,2]
[384409952,1757388642961,-490.23451119,0.00013698,2]
[384409953,1757388642970,-480.0,0.00013698,2]
[384409954,1757388642980,-4852.41,0.00013698,2]
[384409955,1757388642989,-481.72296087,0.00013698,2]
[384409956,1757388642999,-480.0,0.00013698,2]
[384409957,1757388643009,-480.0,0.00013698,2]
[384409958,1757388643019,-482.0920632,0.00013698,2]
[384409959,1757388643029,-480.0,0.00013698,2]
[384409960,1757388643038,-484.96950444,0.00013698,2]
[384409961,1757388643048,-492.72334739,0.00013698,2]
[384409962,1757388643058,-561.93,0.00013698,2]
[384409963,1757388643068,-484.36363453,0.00013698,2]
[384409964,1757388643078,-484.63116995,0.00013698,2]
[384409965,1757388643089,-672.59,0.00013698,2]
[384409966,1757388643099,-485.79,0.00013698,2]
[384409967,1757388643109,-473.75256772,0.00013698,2]
[384409968,1757388643123,-480.0,0.00013698,2]
[384409969,1757388643132,-486.14847043,0.00013698,2]
[384409970,1757388643142,-1458.46,0.00013698,2]
[384409971,1757388643153,-480.0,0.00013698,2]
[384409972,1757388643163,-480.0,0.00013698,2]
[384409973,1757388643172,-483.30120986,0.00013698,2]
[384409974,1757388643182,-1014.70294424,0.00013698,2]
[384409975,1757388643192,-486.81527131,0.00013698,2]
[384409976,1757388643202,-480.0,0.00013698,2]
[384409977,1757388643212,-480.0,0.00013698,2]
[384409978,1757388643222,-484.03809447,0.00013698,2]
[384409979,1757388643231,-570.01683784,0.00013698,2]
[384409980,1757388643241,-480.0,0.00013698,2]
[384409981,1757388643250,-482.50291962,0.00013698,2]
[384409982,1757388643260,-480.0,0.00013698,2]
[384409983,1757388643269,-480.0,0.00013698,2]
[384409984,1757388643279,-480.0,0.00013698,2]
[384409985,1757388643289,-480.0,0.00013698,2]
[384409986,1757388643299,-1111.33,0.00013698,2]
[384409987,1757388643308,-483.22866561,0.00013698,2]
[384409988,1757388643317,-482.55683509,0.00013698,2]
[384409989,1757388643327,-2271.32,0.00013698,2]
[384409990,1757388643336,-483.84231895,0.00013698,2]
[384409991,1757388643345,-480.0,0.00013698,2]
[384409992,1757388643355,-482.80153796,0.00013698,2]
[384409993,1757388643365,-481.95445258,0.00013698,2]
[384409994,1757388643374,-484.06399279,0.00013698,2]
[384409995,1757388643383,-681.3,0.00013698,2]
[384409996,1757388643393,-651.05,0.00013698,2]
[384409997,1757388643404,-485.47088856,0.00013698,2]
[384409998,1757388643413,-483.3894816,0.00013698,2]
[384409999,1757388643423,-480.0,0.00013698,2]
[384410000,1757388643432,-361.37628663,0.00013698,2]
[384410001,1757388643441,-480.0,0.00013698,2]
[384410002,1757388643451,-480.0,0.00013698,2]
[384410003,1757388643460,-164.54684761,0.00013698,2]
[384410005,1757388643676,-319.47586822,0.00013698,2]
[384410006,1757388643686,-480.0,0.00013698,2]
[384410007,1757388643695,-480.0,0.00013698,2]
[384410008,1757388643705,-271.90413178,0.00013698,2]
[384410014,1757388646419,-277.9877906,0.00013698,2]
[384410015,1757388646429,-480.0,0.00013698,2]
[384410016,1757388646438,-480.0,0.00013698,2]
[384410017,1757388646448,-487.46156561,0.00013698,2]
[384410018,1757388646457,-482.40725962,0.00013698,2]
[384410019,1757388646468,-480.0,0.00013698,2]
[384410020,1757388646478,-480.0,0.00013698,2]
[384410021,1757388646488,-480.0,0.00013698,2]
[384410022,1757388646498,-480.0,0.00013698,2]
[384410023,1757388646507,-482.63704211,0.00013698,2]
[384410024,1757388646517,-482.24935386,0.00013698,2]
[384410025,1757388646526,-478.7786621,0.00013698,2]
[384410026,1757388646538,-231.2013379,0.00013698,2]
[384410027,1757388646548,-741.63,0.00013698,2]
[384410028,1757388646557,-46.1355758,0.00013698,2]
[384410029,1757388793710,115247.93379739,0.00013121,2]
[384410033,1757389180612,8654.01,0.0002877,60]
[384410064,1757389832546,-773.58072904,0.00013567,2]
[384410065,1757389833058,-285.0,0.00013596,2]
[384410066,1757389833068,-300.0,0.00013596,2]
[384410067,1757389833078,-1200.0,0.00013597,2]
[384410068,1757389833088,-1200.0,0.00013597,2]
[384410069,1757389833098,-1848.95989423,0.00013598,2]
[384410070,1757389833107,-18573.43590954,0.00013598,2]
[384410071,1757389833116,-8261.47689935,0.00013598,2]
[384410072,1757389833126,-1848.95989419,0.00013667,2]
[384410073,1757389833136,-500.0,0.00013673,2]
[384410074,1757389833145,-500.0,0.00013673,2]
[384410075,1757389833155,-158.04205706,0.00013673,2]
[384410076,1757389833164,-162.47831985,0.00013673,2]
[384410077,1757389833173,-500.0,0.00013673,2]
[384410078,1757389833183,-479.3871845,0.00013673,2]
[384410079,1757389833192,-402.00279279,0.00013673,2]
[384410080,1757389833202,-500.0,0.00013673,2]
[384410081,1757389833211,-500.3954656,0.00013673,2]
[384410082,1757389833222,-500.0,0.00013673,2]
[384410083,1757389833231,-500.0,0.00013673,2]
[384410084,1757389833241,-500.0,0.00013673,2]
[384410085,1757389833251,-502.60101343,0.00013673,2]
[384410086,1757389833260,-500.72557938,0.00013673,2]
[384410087,1757389833270,-258.57917369,0.00013673,2]
[384410088,1757389833279,-500.74954946,0.00013673,2]
[384410089,1757389833299,-500.0,0.00013673,2]
[384410090,1757389833313,-503.28926088,0.00013673,2]
[384410091,1757389833323,-500.77986851,0.00013673,2]
[384410092,1757389833334,-500.0,0.00013673,2]
[384410093,1757389833345,-164.38815301,0.00013673,2]
[384410094,1757389833355,-500.0,0.00013673,2]
[384410095,1757389833368,-500.0,0.00013673,2]
[384410096,1757389833387,-500.0,0.00013673,2]
[384410097,1757389833406,-428.33388901,0.00013673,2]
[384410098,1757389833416,-500.0,0.00013673,2]
[384410099,1757389833427,-500.0,0.00013673,2]
[384410100,1757389833437,-501.23142109,0.00013673,2]
[384410101,1757389833447,-500.0,0.00013673,2]
[384410102,1757389833456,-500.0,0.00013673,2]
[384410103,1757389833467,-500.0,0.00013673,2]
[384410104,1757389833476,-500.95718781,0.00013673,2]
[384410105,1757389833486,-335.7134986,0.00013673,2]
[384410106,1757389833495,-500.38205363,0.00013673,2]
[384410107,1757389833506,-500.6254264,0.00013673,2]
[384410108,1757389833516,-16750.77367376,0.00013673,2]
[384410109,1757389833533,-834.36916314,0.00013673,2]
[384410110,1757389833545,-362.92188207,0.00013673,2]
[384410111,1757389833558,-774.39209301,0.00013673,2]
[384410117,1757389838404,-580.08153839,0.00013673,2]
[384410118,1757389838459,-920.0,0.00013673,2]
[384410119,1757389838471,-3072.28739195,0.00013673,2]
[384410120,1757389838483,-3368.60463169,0.00013673,2]
[384410121,1757389838514,-6602.31379358,0.00013673,2]
[384410170,1757389840670,-16734.25583241,0.00013673,2]
[384410172,1757389840679,-160.0,0.00013676,2]
[384410174,1757389840689,-160.0,0.00013676,2]
[384410176,1757389840698,-500.0,0.0001369,2]
[384410178,1757389840711,-500.0,0.0001369,2]
[384410180,1757389840720,-227.79435506,0.0001369,2]
[384410182,1757389840730,-268.6480797,0.0001369,2]
[384410184,1757389840739,-160.0,0.00013693,2]
[384410186,1757389840748,-160.0,0.00013693,2]
[384410188,1757389840757,-160.0,0.00013693,2]
[384410190,1757389840766,-217.65034598,0.00013694,2]
[384410192,1757389840775,-846.80158213,0.00013694,2]
[384410194,1757389840785,-160.0,0.00013694,2]
[384410196,1757389840795,-530.79566296,0.00013694,2]
[384410198,1757389840803,-417.15472785,0.00013694,2]
[384410200,1757389840813,-160.0,0.00013694,2]
[384410202,1757389840822,-203.28455737,0.00013694,2]
[384410204,1757389840831,-233.05759179,0.00013694,2]
[384410206,1757389840840,-305.45962315,0.00013695,2]
[384410208,1757389840849,-544.60106163,0.00013695,2]
[384410210,1757389840858,-629.23581863,0.00013695,2]
[384410212,1757389840867,-423.57612987,0.00013695,2]
[384410214,1757389840876,-197.54671163,0.00013695,2]
[384410216,1757389840885,-500.0,0.00013695,2]
[384410218,1757389840894,-500.0,0.00013695,2]
[384410220,1757389840904,-500.0,0.00013695,2]
[384410222,1757389840913,-464.27163876,0.00013695,2]
[384410224,1757389840922,-397.97201287,0.00013697,2]
[384410226,1757389840931,-492.52170472,0.00013698,2]
[384410445,1757389843616,-5383.5,0.00013698,2]
[384410469,1757389847012,-218.25240431,0.00013672,2]
[384410471,1757389847021,-813.36617241,0.00013698,2]
[384410477,1757389847070,-2720.56194796,0.00013698,2]
[384410484,1757389847120,-23181.42855441,0.00013698,2]
[384410486,1757389847130,-542.30724353,0.00013698,2]
[384410488,1757389847139,-480.0,0.00013698,2]
[384410490,1757389847148,-480.0,0.00013698,2]
[384410492,1757389847158,-484.57962876,0.00013698,2]
[384410494,1757389847167,-480.0,0.00013698,2]
[384410496,1757389847176,-480.0,0.00013698,2]
[384410498,1757389847185,-480.0,0.00013698,2]
[384410500,1757389847195,-483.7644431,0.00013698,2]
[384410502,1757389847205,-503.79508405,0.00013698,2]
[384410504,1757389847215,-485.35562065,0.00013698,2]
[384410506,1757389847224,-480.0,0.00013698,2]
[384410508,1757389847233,-481.76215621,0.00013698,2]
[384410510,1757389847242,-480.0,0.00013698,2]
[384410511,1757389847251,-480.0,0.00013698,2]
[384410513,1757389847260,-480.0,0.00013698,2]
[384410515,1757389847269,-481.64686306,0.00013698,2]
[384410517,1757389847279,-331.89424427,0.00013698,2]
[384410519,1757389847288,-480.0,0.00013698,2]
[384410521,1757389847297,-481.85753389,0.00013698,2]
[384410523,1757389847306,-480.0,0.00013698,2]
[384410525,1757389847316,-480.0,0.00013698,2]
[384410527,1757389847325,-480.0,0.00013698,2]
[384410529,1757389847335,-480.0,0.00013698,2]
[384410531,1757389847344,-480.0,0.00013698,2]
[384410533,1757389847353,-480.0,0.00013698,2]
[384410535,1757389847363,-480.0,0.00013698,2]
[384410537,1757389847373,-481.30099665,0.00013698,2]
[384410539,1757389847382,-480.0,0.00013698,2]
[384410541,1757389847391,-480.0,0.00013698,2]
[384410543,1757389847401,-480.0,0.00013698,2]
[384410545,1757389847410,-480.0,0.00013698,2]
[384410547,1757389847419,-480.0,0.00013698,2]
[384410549,1757389847428,-483.22985917,0.00013698,2]
[384410551,1757389847437,-480.0,0.00013698,2]
[384410553,1757389847447,-484.39072435,0.00013698,2]
[384410555,1757389847456,-480.0,0.00013698,2]
[384410557,1757389847465,-480.0,0.00013698,2]
[384410559,1757389847474,-480.0,0.00013698,2]
[384410561,1757389847484,-480.0,0.00013698,2]
[384410562,1757389847493,-480.0,0.00013698,2]
[384410564,1757389847502,-286.82436286,0.00013698,2]
[384410566,1757389847511,-480.0,0.00013698,2]
[384410567,1757389847521,-480.0,0.00013698,2]
[384410568,1757389847530,-480.0,0.00013698,2]
[384410569,1757389847539,-480.0,0.00013698,2]
[384410570,1757389847549,-485.09664892,0.00013698,2]
[384410571,1757389847559,-480.0,0.00013698,2]
[384410572,1757389847570,-480.0,0.00013698,2]
[384410573,1757389847579,-482.48805426,0.00013698,2]
[384410574,1757389847589,-480.0,0.00013698,2]
[384410575,1757389847598,-554.06,0.00013698,2]
[384410576,1757389847609,-480.0,0.00013698,2]
[384410577,1757389847618,-483.16448451,0.00013698,2]
[384410578,1757389847629,-482.61410758,0.00013698,2]
[384410579,1757389847639,-480.0,0.00013698,2]
[384410580,1757389847649,-480.0,0.00013698,2]
[384410581,1757389847659,-486.67920616,0.00013698,2]
[384410582,1757389847668,-494.26697901,0.00013698,2]
[384410583,1757389847678,-480.0,0.00013698,2]
[384410584,1757389847687,-480.0,0.00013698,2]
[384410585,1757389847696,-484.7462921,0.00013698,2]
[384410586,1757389847706,-481.15169618,0.00013698,2]
[384410587,1757389847719,-480.0,0.00013698,2]
[384410588,1757389847729,-480.0,0.00013698,2]
[384410589,1757389847738,-482.35013462,0.00013698,2]
[384410590,1757389847750,-483.0412927,0.00013698,2]
[384410591,1757389847759,-210.52721413,0.00013698,2]
[384410592,1757389847769,-480.0,0.00013698,2]
[384410593,1757389847780,-480.0,0.00013698,2]
[384410594,1757389847790,-486.88787084,0.00013698,2]
[384410595,1757389847801,-480.0,0.00013698,2]
[384410596,1757389847811,-480.0,0.00013698,2]
[384410597,1757389847820,-484.24380089,0.00013698,2]
[384410598,1757389847829,-483.97516829,0.00013698,2]
[384410599,1757389847838,-313.19894887,0.00013698,2]
[384410600,1757389847849,-480.5428694,0.00013698,2]
[384410601,1757389847859,-480.0,0.00013698,2]
[384410602,1757389847868,-480.0,0.00013698,2]
[384410603,1757389847878,-500.0,0.00013698,2]
[384410604,1757389847887,-461.92189587,0.00013698,2]
[384410605,1757389847897,-480.6331677,0.00013698,2]
[384410606,1757389847906,-262.78071284,0.00013698,2]
[384410607,1757389847916,-480.0,0.00013698,2]
[384410608,1757389847926,-480.0,0.00013698,2]
[384410609,1757389847936,-482.74357432,0.00013698,2]
[384410610,1757389847945,-480.0,0.00013698,2]
[384410611,1757389847954,-463.88704945,0.00013698,2]
[384410612,1757389847963,-484.7203202,0.00013698,2]
[384410613,1757389847972,-481.31212355,0.00013698,2]
[384410614,1757389847981,-872.31,0.00013698,2]
[384410615,1757389847990,-480.0,0.00013698,2]
[384410616,1757389847999,-480.0,0.00013698,2]
[384410617,1757389848009,-480.0,0.00013698,2]
[384410618,1757389848018,-484.53881396,0.00013698,2]
[384410619,1757389848028,-480.0,0.00013698,2]
[384410620,1757389848037,-480.0,0.00013698,2]
[384410621,1757389848046,-480.0,0.00013698,2]
[384410622,1757389848057,-480.0,0.00013698,2]
[384410623,1757389848066,-480.0,0.00013698,2]
[384410624,1757389848075,-482.28132234,0.00013698,2]
[384410625,1757389848084,-480.0,0.00013698,2]
[384410626,1757389848093,-483.80027626,0.00013698,2]
[384410627,1757389848103,-485.35640352,0.00013698,2]
[384410628,1757389848111,-489.89294991,0.00013698,2]
[384410629,1757389848121,-480.0,0.00013698,2]
[384410630,1757389848130,-480.0,0.00013698,2]
[384410631,1757389848139,-480.0,0.00013698,2]
[384410632,1757389848148,-484.57731669,0.00013698,2]
[384410633,1757389848157,-480.0,0.00013698,2]
[384410634,1757389848166,-480.0,0.00013698,2]
[384410635,1757389848175,-480.0,0.00013698,2]
[384410636,1757389848185,-490.93746389,0.00013698,2]
[384410637,1757389848194,-188.52948929,0.00013698,2]
[384410638,1757389848203,-480.0,0.00013698,2]
[384410639,1757389848213,-480.0,0.00013698,2]
[384410640,1757389848222,-197.97843043,0.00013698,2]
[384410641,1757389848232,-480.0,0.00013698,2]
[384410642,1757389848241,-480.0,0.00013698,2]
[384410643,1757389848250,-480.0,0.00013698,2]
[384410644,1757389848259,-1000.0,0.00013698,2]
[384410645,1757389848269,-152.11058956,0.00013698,2]
[384410646,1757389848278,-481.93573709,0.00013698,2]
[384410647,1757389848288,-535.59431441,0.00013698,2]
[384410648,1757389848297,-480.0,0.00013698,2]
[384410649,1757389848306,-480.0,0.00013698,2]
[384410650,1757389848316,-487.05767751,0.00013698,2]
[384410651,1757389848326,-480.0,0.00013698,2]
[384410652,1757389848335,-484.82869876,0.00013698,2]
[384410653,1757389848345,-480.0,0.00013698,2]
[384410654,1757389848354,-500.0,0.00013698,2]
[384410655,1757389848364,-500.0,0.00013698,2]
[384410656,1757389848374,-500.0,0.00013698,2]
[384410657,1757389848383,-480.0,0.00013698,2]
[384410658,1757389848393,-500.0,0.00013698,2]
[384410659,1757389848402,-500.0,0.00013698,2]
[384410660,1757389848412,-489.89498484,0.00013698,2]
[384410661,1757389848422,-480.0,0.00013698,2]
[384410662,1757389848432,-500.0,0.00013698,2]
[384410663,1757389848441,-500.0,0.00013698,2]
[384410664,1757389848451,-500.0,0.00013698,2]
[384410665,1757389848460,-480.0,0.00013698,2]
[384410666,1757389848470,-500.0,0.00013698,2]
[384410667,1757389848479,-480.0,0.00013698,2]
[384410668,1757389848488,-527.76595623,0.00013698,2]
[384410669,1757389848498,-480.0,0.00013698,2]
[384410670,1757389848508,-480.0,0.00013698,2]
[384410671,1757389848518,-480.0,0.00013698,2]
[384410672,1757389848528,-176.32028362,0.00013698,2]
[384410673,1757389848537,-480.0,0.00013698,2]
[384410674,1757389848546,-480.0,0.00013698,2]
[384410675,1757389848555,-480.0,0.00013698,2]
[384410676,1757389848564,-508.23,0.00013698,2]
[384410677,1757389848574,-508.23,0.00013698,2]
[384410678,1757389848583,-508.23,0.00013698,2]
[384410679,1757389848593,-508.23,0.00013698,2]
[384410680,1757389848602,-508.23,0.00013698,2]
[384410681,1757389848611,-508.23,0.00013698,2]
[384410682,1757389848620,-508.23,0.00013698,2]
[384410683,1757389848630,-508.23,0.00013698,2]
[384410684,1757389848639,-508.23,0.00013698,2]
[384410685,1757389848649,-508.23,0.00013698,2]
[384410686,1757389848659,-508.23,0.00013698,2]
[384410687,1757389848669,-508.23,0.00013698,2]
[384410688,1757389848678,-508.23,0.00013698,2]
[384410689,1757389848687,-508.23,0.00013698,2]
[384410690,1757389848696,-508.23,0.00013698,2]
[384410691,1757389848708,-508.23,0.00013698,2]
[384410692,1757389848717,-508.23,0.00013698,2]
[384410693,1757389848727,-508.23,0.00013698,2]
[384410694,1757389848736,-508.23,0.00013698,2]
[384410695,1757389848745,-508.23,0.00013698,2]
[384410696,1757389848754,-508.23,0.00013698,2]
[384410697,1757389848763,-792.98,0.00013698,2]
[384410698,1757389848772,-508.23,0.00013698,2]
[384410699,1757389848781,-491.97735452,0.00013698,2]
[384410700,1757389848790,-508.23,0.00013698,2]
[384410701,1757389848799,-508.30145903,0.00013698,2]
[384410702,1757389848809,-480.0,0.00013698,2]
[384410703,1757389848818,-480.0,0.00013698,2]
[384410704,1757389848828,-480.0,0.00013698,2]
[384410705,1757389848838,-480.0,0.00013698,2]
[384410706,1757389848848,-480.0,0.00013698,2]
[384410707,1757389848857,-480.0,0.00013698,2]
[384410708,1757389848866,-480.0,0.00013698,2]
[384410709,1757389848875,-480.0,0.00013698,2]
[384410710,1757389848884,-480.0,0.00013698,2]
[384410711,1757389848893,-480.0,0.00013698,2]
[384410712,1757389848902,-480.0,0.00013698,2]
[384410713,1757389848913,-480.0,0.00013698,2]
[384410714,1757389848923,-480.0,0.00013698,2]
[384410715,1757389848932,-480.0,0.00013698,2]
[384410716,1757389848941,-151.0,0.00013698,2]
[384410717,1757389848951,-480.0,0.00013698,2]
[384410718,1757389848960,-480.0,0.00013698,2]
[384410719,1757389848969,-480.0,0.00013698,2]
[384410720,1757389848978,-480.0,0.00013698,2]
[384410721,1757389848987,-480.0,0.00013698,2]
[384410722,1757389848996,-480.0,0.00013698,2]
[384410723,1757389849006,-480.0,0.00013698,2]
[384410724,1757389849015,-480.0,0.00013698,2]
[384410725,1757389849024,-158.27277284,0.00013698,2]
[384410726,1757389849034,-480.0,0.00013698,2]
[384410727,1757389849043,-604.43,0.00013698,2]
[384410728,1757389849052,-480.0,0.00013698,2]
[384410729,1757389849063,-480.0,0.00013698,2]
[384410730,1757389849072,-480.0,0.00013698,2]
[384410731,1757389849082,-493.18379263,0.00013698,2]
[384410732,1757389849092,-480.0,0.00013698,2]
[384410733,1757389849101,-480.0,0.00013698,2]
[384410734,1757389849110,-660.06,0.00013698,2]
[384410735,1757389849119,-486.53127263,0.00013698,2]
[384410736,1757389849128,-480.0,0.00013698,2]
[384410737,1757389849138,-480.0,0.00013698,2]
[384410738,1757389849147,-195.913011,0.00013698,2]
[384410739,1757389849158,-480.0,0.00013698,2]
[384410740,1757389849167,-326.6762535,0.00013698,2]
[384410741,1757389849176,-480.0,0.00013698,2]
[384410742,1757389849186,-532.36,0.00013698,2]
[384410743,1757389849195,-480.0,0.00013698,2]
[384410744,1757389849205,-482.49653653,0.00013698,2]
[384410745,1757389849214,-480.0,0.00013698,2]
[384410746,1757389849224,-151.0,0.00013698,2]
[384410747,1757389849234,-151.0,0.00013698,2]
[384410748,1757389849244,-151.0,0.00013698,2]
[384410749,1757389849253,-480.0,0.00013698,2]
[384410750,1757389849262,-448.17544728,0.00013698,2]
[384410751,1757389849272,-153.413795,0.00013698,2]
[384410752,1757389849281,-173.367995,0.00013698,2]
[384410753,1757389849290,-480.0,0.00013698,2]
[384410754,1757389849300,-480.0,0.00013698,2]
[384410755,1757389849309,-489.38274467,0.00013698,2]
[384410756,1757389849319,-297.16977673,0.00013698,2]
[384410759,1757390078552,152.2204838,0.00013327,2]
[384410760,1757390117729,529.25,0.00012329,2]
[384410762,1757390128465,546.9,0.00012329,2]
[384410764,1757390169763,235.96,0.00012329,2]
[384410766,1757390180463,196.63,0.00012329,2]
[384410767,1757390190926,163.86,0.00012329,2]
[384410769,1757390201417,819.33,0.00012329,2]
[384410770,1757390211846,219.79,0.00012329,2]
[384410771,1757390222296,183.16,0.00012329,2]
[384410772,1757390242966,152.63,0.00012329,2]
[384410773,1757390253460,763.17,0.00012329,2]
[384410777,1757390489055,1649.30023651,0.00013062,2]
[384410778,1757390497486,1649.30023651,0.00013062,2]
[384410779,1757390505804,1649.30023651,0.00013062,2]
[384410780,1757390514521,900.59570122,0.00013062,2]
[384410781,1757390523509,900.59570122,0.00013062,2]
[384410782,1757390531540,1497.07975271,0.00013062,2]
[384410783,1757390543755,250.0,0.00012906,2]
[384410784,1757390548320,168.0,0.00013062,2]
[384410785,1757390556876,322.1404013,0.00013062,2]
[384410786,1757390572583,336.0,0.00013062,2]
[384410787,1757390596978,168.0,0.00013062,2]
[384410788,1757390642963,336.0,0.00013062,2]
[384410789,1757390673741,168.0,0.00013062,2]
[384410791,1757390689665,168.0,0.00013062,2]
[384410792,1757390712090,2000.0,0.00025,30]
[384410793,1757390720978,336.0,0.00013062,2]
[384410794,1757390745935,168.0,0.00013062,2]
[384410795,1757390783643,-180.00781624,0.00013193,2]
[384410796,1757390785305,-219.48537938,0.00013193,2]
[384410797,1757390793445,226.82805183,0.00013061,2]
[384410798,1757390809432,226.82805183,0.00013061,2]
[384410799,1757390817994,226.82805183,0.00013061,2]
[384410800,1757390827687,4655.66232,0.00025,31]
[384410801,1757390833833,172.66514379,0.00013061,2]
[384410802,1757390842426,218.34389634,0.00013061,2]
[384410803,1757390865615,168.0,0.00013061,2]
[384410804,1757390882032,168.0,0.00013061,2]
[384410805,1757390926757,226.82805183,0.00013061,2]
[384410807,1757390971559,226.82805183,0.00013061,2]
[384410809,1757390994471,218.34389634,0.00013061,2]
[384410812,1757391017449,168.0,0.00013061,2]
[384410866,1757391032774,-226.82805183,0.00013193,2]
[384410868,1757391032784,-500.0,0.00013194,2]
[384410870,1757391032793,-500.0,0.00013194,2]
[384410872,1757391032802,-497.07975271,0.00013194,2]
[384410875,1757391032812,-359.17716435,0.00013273,2]
[384410876,1757391032821,-152.2204838,0.00013462,2]
[384410879,1757391032830,-1714.69454731,0.00013465,2]
[384410881,1757391032842,-403.47318033,0.00013465,2]
[384410883,1757391032852,-538.409487,0.00013497,2]
[384410885,1757391032863,-661.590513,0.00013497,2]
[384410887,1757391032872,-854.21022294,0.00013498,2]